fUSD/lending_fUSD_20240614
["ID","MTS","AMOUNT","RATE_DAILY","PERIOD"]
[329474779,1718382893437,-154.08209522,0.00029386,2]
[329474780,1718382893481,-166.66666667,0.0002939,2]
[329474781,1718382893556,-363.0,0.00029391,2]
[329474782,1718382893573,-151.99268138,0.00029419,2]
[329474783,1718382893610,-673.41541736,0.00029468,2]
[329474784,1718382893666,-2593.42866723,0.00029478,2]
[329474785,1718382893690,-272.80263991,0.00029479,30]
[329474786,1718382893719,-159.60705426,0.0002948,2]
[329474787,1718382893743,-22489.70720628,0.00029486,61]
[329474788,1718382893762,-2593.42866723,0.00029489,2]
[329474789,1718382893779,-150.0,0.00029497,7]
[329474790,1718382893809,-150.0,0.00029497,7]
[329474791,1718382893839,-150.0,0.00029497,7]
[329474792,1718382893868,-227.01911485,0.000295,3]
[329474793,1718382893895,-5386.75,0.000295,2]
[329474794,1718382893929,-747.490281,0.000295,2]
[329474795,1718382893955,-371.42320115,0.00029572,2]
[329474796,1718382893995,-154.29927158,0.00029584,2]
[329474797,1718382894094,-886.24,0.00029588,3]
[329474798,1718382894165,-826.82,0.00029588,3]
[329474799,1718382894184,-647.49,0.00029589,3]
[329474800,1718382894242,-741.65,0.00029589,3]
[329474801,1718382894258,-1039.58,0.00029589,3]
[329474802,1718382894275,-500.0,0.00029589,3]
[329474803,1718382894312,-606.88,0.00029589,3]
[329474804,1718382894335,-673.4,0.00029589,3]
[329474805,1718382894350,-593.08,0.00029589,3]
[329474806,1718382894445,-669.21,0.00029589,3]
[329474807,1718382894521,-736.96,0.00029589,3]
[329474808,1718382894566,-507.96,0.00029589,3]
[329474809,1718382894600,-670.88,0.00029589,3]
[329474810,1718382894670,-574.95,0.00029589,3]
[329474811,1718382894686,-500.0,0.00029589,3]
[329474812,1718382894717,-1734.14,0.00029589,3]
[329474813,1718382894739,-176.16400189,0.00029589,3]
[329474814,1718382894795,-673.58,0.00029589,3]
[329474815,1718382894827,-633.38,0.00029589,3]
[329474816,1718382894849,-1004.01,0.00029589,3]
[329474817,1718382894880,-597.68,0.00029589,3]
[329474818,1718382894911,-733.92,0.00029589,3]
[329474819,1718382894952,-510.37,0.00029589,3]
[329474820,1718382894967,-500.0,0.00029589,3]
[329474821,1718382894999,-521.38,0.00029589,3]
[329474822,1718382895089,-500.0,0.00029589,3]
[329474823,1718382895144,-304.07194815,0.00029589,3]
[329474824,1718382895164,-500.0,0.00029589,3]
[329474825,1718382895182,-618.42,0.00029589,3]
[329474826,1718382895233,-500.0,0.00029589,3]
[329474827,1718382895269,-640.05,0.00029589,3]
[329474828,1718382895332,-590.79,0.00029589,3]
[329474829,1718382895361,-899.12,0.00029589,3]
[329474830,1718382895384,-619.45,0.00029589,3]
[329474831,1718382895407,-511.68,0.00029589,3]
[329474832,1718382895433,-501.34,0.00029589,3]
[329474833,1718382895446,-500.0,0.00029589,3]
[329474834,1718382895462,-548.11,0.00029589,3]
[329474835,1718382895479,-763.77,0.00029589,3]
[329474836,1718382895499,-500.0,0.00029589,3]
[329474837,1718382895513,-512.15,0.00029589,3]
[329474838,1718382895553,-500.0,0.00029589,3]
[329474839,1718382895598,-611.46,0.00029589,3]
[329474840,1718382895629,-573.96,0.00029589,3]
[329474841,1718382895660,-831.61,0.00029589,3]
[329474842,1718382895690,-662.73,0.00029589,3]
[329474843,1718382895736,-315.04760521,0.00029589,3]
[329474844,1718382895765,-568.32,0.00029589,3]
[329474845,1718382895810,-697.2,0.00029589,3]
[329474846,1718382895911,-889.26,0.00029589,3]
[329474847,1718382895939,-585.92,0.00029589,3]
[329474848,1718382895965,-510.01,0.00029589,3]
[329474849,1718382896011,-612.61,0.00029589,3]
[329474850,1718382896029,-1011.12,0.00029589,3]
[329474851,1718382896073,-462.9233584,0.00029589,3]
[329474852,1718382896120,-500.0,0.00029589,3]
[329474853,1718382896144,-717.84,0.00029589,3]
[329474854,1718382896198,-574.18,0.00029589,3]
[329474855,1718382896245,-1073.14,0.00029589,3]
[329474856,1718382896293,-813.3,0.00029589,3]
[329474857,1718382896315,-679.7,0.00029589,3]
[329474858,1718382896357,-589.82,0.00029589,3]
[329474859,1718382896370,-875.23,0.00029589,3]
[329474860,1718382896386,-555.05,0.00029589,7]
[329474861,1718382896406,-617.39,0.00029589,3]
[329474862,1718382896442,-652.05,0.00029589,3]
[329474863,1718382896461,-675.91,0.00029589,3]
[329474864,1718382896518,-627.05,0.00029589,3]
[329474865,1718382896561,-655.54,0.00029589,3]
[329474866,1718382896580,-1343.73,0.00029589,3]
[329474867,1718382896607,-2215.06,0.00029589,3]
[329474868,1718382896630,-723.48,0.00029589,3]
[329474869,1718382896690,-1901.93,0.00029589,3]
[329474870,1718382896718,-247.17,0.00029589,3]
[329474871,1718382896746,-1219.21,0.00029589,3]
[329474872,1718382896759,-598.03,0.00029589,3]
[329474873,1718382896770,-854.03,0.00029589,3]
[329474874,1718382896793,-664.58,0.00029589,3]
[329474875,1718382896824,-500.0,0.00029589,3]
[329474876,1718382896844,-854.39,0.00029589,3]
[329474877,1718382896866,-729.5,0.00029589,3]
[329474878,1718382896883,-636.02,0.00029589,3]
[329474879,1718382896924,-625.4,0.00029589,3]
[329474880,1718382896950,-601.31,0.00029589,3]
[329474881,1718382896962,-507.25,0.00029589,3]
[329474882,1718382896996,-666.51,0.00029589,3]
[329474883,1718382897022,-627.2,0.00029589,3]
[329474884,1718382897037,-782.35,0.00029589,3]
[329474885,1718382897080,-2579.99,0.00029589,3]
[329474886,1718382897108,-500.0,0.00029589,3]
[329474887,1718382897146,-500.0,0.00029589,3]
[329474888,1718382897173,-633.7,0.00029589,3]
[329474889,1718382897185,-500.0,0.00029589,3]
[329474890,1718382897210,-2409.52,0.00029589,3]
[329474891,1718382897230,-345.69533873,0.00029589,3]
[329474892,1718382897248,-955.12,0.00029589,3]
[329474893,1718382897272,-718.69,0.00029589,3]
[329474894,1718382897307,-545.48,0.00029589,3]
[329474895,1718382897361,-676.49,0.00029589,3]
[329474896,1718382897381,-1205.04,0.00029589,3]
[329474897,1718382897418,-500.0,0.00029589,3]
[329474898,1718382897444,-2513.5,0.00029589,3]
[329474899,1718382897468,-500.0,0.00029589,3]
[329474900,1718382897504,-719.42,0.00029589,3]
[329474901,1718382897517,-3991.97,0.00029589,3]
[329474902,1718382897539,-3357.78,0.00029589,3]
[329474903,1718382897612,-1455.39,0.00029589,3]
[329474904,1718382897639,-2695.33,0.00029589,3]
[329474905,1718382897696,-587.38,0.00029589,3]
[329474906,1718382897712,-3621.35,0.00029589,3]
[329474907,1718382897727,-505.02,0.00029589,3]
[329474908,1718382897752,-12900.66,0.00029589,3]
[329474909,1718382897795,-2226.1,0.00029589,3]
[329474910,1718382897872,-704.82,0.00029589,3]
[329474911,1718382897904,-1468.02,0.00029589,3]
[329474912,1718382897925,-272.80263991,0.00029589,30]
[329474913,1718382897954,-155.25371207,0.00029595,2]
[329474914,1718382897972,-1477.13,0.000296,2]
[329474915,1718382898011,-1571.91,0.000296,2]
[329474916,1718382898058,-1121.235421,0.000296,2]
[329474917,1718382898104,-371.42320115,0.000296,2]
[329474918,1718382898119,-371.42320115,0.00029601,2]
[329474919,1718382898185,-1395.34919464,0.00029601,7]
[329474920,1718382898241,-156.8900021,0.00029614,2]
[329474921,1718382898289,-151.99268138,0.00029648,2]
[329474922,1718382898311,-156.8900021,0.00029649,2]
[329474923,1718382898337,-492.0,0.00029667,2]
[329474924,1718382898370,-150.0,0.0002967,7]
[329474925,1718382898389,-2593.42866723,0.00029685,2]
[329474926,1718382898427,-363.0,0.00029694,2]
[329474927,1718382898439,-2000.0,0.000297,2]
[329474928,1718382898452,-2000.0,0.000297,2]
[329474929,1718382898465,-2000.0,0.000297,2]
[329474930,1718382898502,-642.9416,0.000297,2]
[329474931,1718382898526,-300.0,0.000297,2]
[329474932,1718382898585,-1494.980562,0.000297,2]
[329474933,1718382898613,-673.41541736,0.00029706,2]
[329474934,1718382898643,-155.2537121,0.00029711,2]
[329474935,1718382898688,-2593.42866723,0.00029711,2]
[329474936,1718382898702,-170.01053089,0.00029714,2]
[329474937,1718382898719,-154.75879082,0.00029718,2]
[329474938,1718382898744,-272.80263991,0.00029726,30]
[329474939,1718382898758,-1778.0,0.000298,20]
[329474940,1718382898805,-1144.0,0.000298,18]
[329474941,1718382898851,-155.49510585,0.000298,2]
[329474942,1718382898900,-1868.725702,0.000298,2]
[329474943,1718382898929,-2616.215983,0.000298,2]
[329474944,1718382898957,-2989.961124,0.000298,30]
[329474945,1718382898975,-150.0,0.00029819,7]
[329474946,1718382898996,-170.01053089,0.0002984,2]
[329474947,1718382899060,-886.24,0.00029862,3]
[329474948,1718382899082,-826.82,0.00029862,3]
[329474949,1718382899095,-647.49,0.00029863,3]
[329474950,1718382899140,-741.65,0.00029863,3]
[329474951,1718382899167,-1039.58,0.00029863,3]
[329474952,1718382899208,-437.76038906,0.00029863,3]
[329474953,1718382899221,-606.88,0.00029863,3]
[329474954,1718382899264,-673.4,0.00029863,3]
[329474955,1718382899277,-593.08,0.00029863,3]
[329474956,1718382899298,-669.21,0.00029863,3]
[329474957,1718382899315,-736.96,0.00029863,3]
[329474958,1718382899330,-507.96,0.00029863,3]
[329474959,1718382899356,-670.88,0.00029863,3]
[329474960,1718382899392,-574.95,0.00029863,3]
[329474961,1718382899482,-500.0,0.00029863,3]
[329474962,1718382899520,-1734.14,0.00029863,3]
[329474963,1718382899548,-673.58,0.00029863,3]
[329474964,1718382899571,-633.38,0.00029863,3]
[329474965,1718382899589,-1004.01,0.00029863,3]
[329474966,1718382899640,-597.68,0.00029863,3]
[329474967,1718382899655,-733.92,0.00029863,3]
[329474968,1718382899674,-510.37,0.00029863,3]
[329474969,1718382899689,-500.0,0.00029863,3]
[329474970,1718382899711,-521.38,0.00029863,3]
[329474971,1718382899740,-500.0,0.00029863,3]
[329474972,1718382899792,-500.0,0.00029863,3]
[329474973,1718382899814,-618.42,0.00029863,3]
[329474974,1718382899856,-299.83955261,0.00029863,3]
[329474975,1718382899873,-640.05,0.00029863,3]
[329474976,1718382899899,-590.79,0.00029863,3]
[329474977,1718382899914,-899.12,0.00029863,3]
[329474978,1718382899935,-619.45,0.00029863,3]
[329474979,1718382900020,-511.68,0.00029863,3]
[329474980,1718382900091,-501.34,0.00029863,3]
[329474981,1718382900106,-500.0,0.00029863,3]
[329474982,1718382900132,-548.11,0.00029863,3]
[329474983,1718382900147,-763.77,0.00029863,3]
[329474984,1718382900197,-612.67865809,0.00029863,3]
[329474985,1718382900268,-512.15,0.00029863,3]
[329474986,1718382900296,-351.43866285,0.00029863,3]
[329474987,1718382900331,-611.46,0.00029863,3]
[329474988,1718382900347,-573.96,0.00029863,3]
[329474989,1718382900397,-831.61,0.00029863,3]
[329474990,1718382900415,-662.73,0.00029863,3]
[329474991,1718382900426,-568.32,0.00029863,3]
[329474992,1718382900439,-697.2,0.00029863,3]
[329474993,1718382900472,-889.26,0.00029863,3]
[329474994,1718382900493,-585.92,0.00029863,3]
[329474995,1718382900524,-510.01,0.00029863,3]
[329474996,1718382900567,-612.61,0.00029863,3]
[329474997,1718382900583,-1011.12,0.00029863,3]
[329474998,1718382900605,-426.46047333,0.00029863,3]
[329474999,1718382900631,-717.84,0.00029863,3]
[329475000,1718382900658,-574.18,0.00029863,3]
[329475001,1718382900681,-1073.14,0.00029863,3]
[329475002,1718382900740,-813.3,0.00029863,3]
[329475003,1718382900793,-679.7,0.00029863,3]
[329475004,1718382900835,-589.82,0.00029863,3]
[329475005,1718382900895,-875.23,0.00029863,3]
[329475006,1718382900932,-555.05,0.00029863,7]
[329475007,1718382900948,-617.39,0.00029863,3]
[329475008,1718382901008,-652.05,0.00029863,3]
[329475009,1718382901084,-675.91,0.00029863,3]
[329475010,1718382901136,-627.05,0.00029863,3]
[329475011,1718382901210,-655.54,0.00029863,3]
[329475012,1718382901317,-1343.73,0.00029863,3]
[329475013,1718382901358,-2215.06,0.00029863,3]
[329475014,1718382901422,-723.48,0.00029863,3]
[329475015,1718382901503,-1901.93,0.00029863,3]
[329475016,1718382901588,-247.17,0.00029863,3]
[329475017,1718382901608,-1219.21,0.00029863,3]
[329475018,1718382901625,-598.03,0.00029863,3]
[329475019,1718382901695,-854.03,0.00029863,3]
[329475020,1718382901732,-664.58,0.00029863,3]
[329475021,1718382901801,-398.32609555,0.00029863,3]
[329475022,1718382901822,-854.39,0.00029863,3]
[329475023,1718382901847,-729.5,0.00029863,3]
[329475024,1718382901861,-636.02,0.00029863,3]
[329475025,1718382901878,-625.4,0.00029863,3]
[329475026,1718382901898,-601.31,0.00029863,3]
[329475027,1718382901933,-507.25,0.00029863,3]
[329475028,1718382901993,-666.51,0.00029863,3]
[329475029,1718382902128,-627.2,0.00029863,3]
[329475030,1718382902173,-782.35,0.00029863,3]
[329475031,1718382902204,-2579.99,0.00029863,3]
[329475032,1718382902261,-500.0,0.00029863,3]
[329475033,1718382902291,-500.0,0.00029863,3]
[329475034,1718382902336,-633.7,0.00029863,3]
[329475035,1718382902449,-221.08044167,0.00029863,3]
[329475036,1718382902543,-2409.52,0.00029863,3]
[329475037,1718382902587,-955.12,0.00029863,3]
[329475038,1718382902611,-718.69,0.00029863,3]
[329475039,1718382902624,-545.48,0.00029863,3]
[329475040,1718382902639,-676.49,0.00029863,3]
[329475041,1718382902661,-1205.04,0.00029863,3]
[329475042,1718382902676,-500.0,0.00029863,3]
[329475043,1718382902729,-2513.5,0.00029863,3]
[329475044,1718382902762,-500.0,0.00029863,3]
[329475045,1718382902828,-719.42,0.00029863,3]
[329475046,1718382902854,-3991.97,0.00029863,3]
[329475047,1718382902869,-3357.78,0.00029863,3]
[329475048,1718382902903,-1455.39,0.00029863,3]
[329475049,1718382902949,-2695.33,0.00029863,3]
[329475050,1718382903054,-587.38,0.00029863,3]
[329475051,1718382903069,-3621.35,0.00029863,3]
[329475052,1718382903095,-505.02,0.00029863,3]
[329475053,1718382903107,-12900.66,0.00029863,3]
[329475054,1718382903175,-2226.1,0.00029863,3]
[329475055,1718382903201,-704.82,0.00029863,3]
[329475056,1718382903237,-23035.41814506,0.00029887,2]
[329475057,1718382903330,-500.0,0.0002989,5]
[329475058,1718382903342,-500.0,0.0002989,5]
[329475059,1718382903369,-500.0,0.0002989,5]
[329475060,1718382903382,-500.0,0.0002989,5]
[329475061,1718382903393,-500.0,0.0002989,5]
[329475062,1718382903422,-500.0,0.0002989,5]
[329475063,1718382903436,-500.0,0.0002989,5]
[329475064,1718382903475,-500.0,0.0002989,5]
[329475065,1718382903520,-500.0,0.0002989,5]
[329475066,1718382903569,-500.0,0.0002989,5]
[329475067,1718382903620,-500.0,0.0002989,5]
[329475068,1718382903636,-500.0,0.0002989,5]
[329475069,1718382903656,-500.0,0.0002989,5]
[329475070,1718382903685,-500.0,0.0002989,5]
[329475071,1718382903751,-500.0,0.0002989,5]
[329475072,1718382903765,-500.0,0.0002989,5]
[329475073,1718382903784,-500.0,0.0002989,5]
[329475074,1718382903880,-500.0,0.0002989,5]
[329475075,1718382903906,-500.0,0.0002989,5]
[329475076,1718382903936,-500.0,0.0002989,5]
[329475077,1718382903972,-500.0,0.0002989,5]
[329475078,1718382903996,-500.0,0.0002989,5]
[329475079,1718382904040,-500.0,0.0002989,5]
[329475080,1718382904065,-250.33422225,0.0002989,5]
[329475081,1718382904078,-2000.0,0.00029899,2]
[329475082,1718382904170,-2000.0,0.00029899,2]
[329475083,1718382904209,-2000.0,0.00029899,2]
[329475084,1718382904390,-2000.0,0.00029899,2]
[329475085,1718382904464,-152.86,0.000299,7]
[329475086,1718382904536,-151.98,0.000299,7]
[329475087,1718382904608,-158.25759816,0.000299,2]
[329475088,1718382904645,-1395.84,0.000299,7]
[329475089,1718382904688,-673.41541736,0.00029942,2]
[329475090,1718382904721,-150.0,0.00029947,7]
[329475091,1718382904805,-400.0,0.0002997,2]
[329475092,1718382904818,-700.0,0.0002997,2]
[329475093,1718382904860,-1453.712695,0.0002998,10]
[329475094,1718382904893,-14147060.27600369,0.0002998,2]
[329475095,1718382904958,-3504.36515698,0.0002999,2]
[329475096,1718382905032,-5400.0,0.0002999,30]
[329475097,1718382905053,-1338.56414391,0.0002999,4]
[329475098,1718382905084,-1000.0,0.0002999,3]
[329475099,1718382905122,-1764.41450572,0.0002999,2]
[329475100,1718382905221,-222.0,0.0002999,2]
[329475101,1718382905260,-200.0,0.0002999,2]
[329475102,1718382905285,-202.0,0.0002999,2]
[329475103,1718382905302,-202.0,0.0002999,2]
[329475104,1718382905358,-218.0,0.0002999,2]
[329475105,1718382905427,-201.0,0.0002999,2]
[329475106,1718382905457,-221.0,0.0002999,2]
[329475107,1718382905479,-202.0,0.0002999,2]
[329475108,1718382905621,-167.13103181,0.0002999,2]
[329475109,1718382905670,-215.0,0.0002999,2]
[329475110,1718382905792,-363.0,0.00029997,2]
[329475111,1718382905817,-4439.37187213,0.00029998,2]
[329475112,1718382905897,-155.50066545,0.00029998,2]
[329475113,1718382905983,-170.01053089,0.00029998,2]
[329475114,1718382906007,-2000.0,0.00029999,2]
[329475115,1718382906112,-12222.57,0.00029999,2]
[329475116,1718382906141,-26162636.61589616,0.0003,2]
[329475117,1718382906163,-10000.0,0.0003,15]
[329475118,1718382906190,-155.0,0.0003,2]
[329475119,1718382906216,-3359.66688101,0.0003,4]
[329475120,1718382906255,-155.50406599,0.0003,3]
[329475121,1718382906281,-1209.86996063,0.0003,10]
[329475122,1718382906306,-67570.95841859,0.0003,2]
[329475123,1718382906419,-155.0,0.0003,2]
[329475124,1718382906433,-160.0,0.0003,2]
[329475125,1718382906476,-235.78168334,0.0003,4]
[329475126,1718382906490,-3200.0,0.0003,2]
[329475127,1718382906511,-2735734.42141857,0.0003,2]
[329475128,1718382906556,-1713.20055467,0.0003,2]
[329475129,1718382906624,-13081806.73301216,0.0003,2]
[329475130,1718382906648,-11071.61939,0.0003,3]
[329475131,1718382906663,-625482.19182268,0.0003,2]
[329475132,1718382906711,-1403655.73752035,0.0003,2]
[329475133,1718382906732,-1191.49972991,0.0003,10]
[329475134,1718382906757,-638.50988009,0.0003,4]
[329475135,1718382906776,-4636261.05539441,0.0003,2]
[329475136,1718382906817,-1000.0,0.0003,15]
[329475137,1718382906976,-903899.32622205,0.0003,2]
[329475138,1718382907054,-156753.77706849,0.0003,7]
[329475139,1718382907071,-754658.84588609,0.0003,2]
[329475140,1718382907088,-1361.75234392,0.0003,5]
[329475141,1718382907108,-155.14958176,0.0003,4]
[329475142,1718382907136,-578.35857815,0.0003,7]
[329475143,1718382907163,-500.0,0.0003,4]
[329475144,1718382907207,-500.0,0.0003,4]
[329475145,1718382907235,-500.0,0.0003,7]
[329475146,1718382907260,-6160202.01859992,0.0003,2]
[329475147,1718382907322,-150.0,0.0003,10]
[329475148,1718382907342,-150.0,0.0003,10]
[329475149,1718382907426,-150.0,0.0003,10]
[329475150,1718382907473,-206.423327,0.0003,10]
[329475151,1718382907535,-23730405.35531415,0.0003,2]
[329475152,1718382907575,-619.66585405,0.0003,2]
[329475153,1718382907615,-101313139.53190786,0.0003,2]
[329475154,1718382907858,-654.995,0.0003,2]
[329475155,1718382907996,-3782.8,0.0003,2]
[329475156,1718382908048,-862.3800003,0.0003,2]
[329475157,1718382908083,-38354.8654747,0.0003,2]
[329475158,1718382908114,-2539.27246372,0.0003,2]
[329475159,1718382908128,-6986.68488,0.0003,2]
[329475160,1718382992856,-606972.4069596,0.0003,2]
[329475161,1718382992869,-3496.79817067,0.0003,2]
[329475162,1718382992887,-99400.55651969,0.0003,2]
[329475163,1718382992900,-3597.99853864,0.0003,2]
[329475164,1718382992917,-576.72697962,0.0003,2]
[329475165,1718382992954,-12650.02059516,0.0003,2]
[329475166,1718382993188,-254.84957065,0.000241,2]
[329475167,1718382993247,-560.09394104,0.000241,2]
[329475168,1718382993302,-4533.20244873,0.000241,2]
[329475169,1718382993323,-2636.23402685,0.000241,2]
[329475170,1718382993431,-1238.18535387,0.000241,2]
[329475171,1718382993458,-500.0,0.00026027,3]
[329475172,1718382993475,-371.72697893,0.00026301,3]
[329475173,1718382993525,-101.77302107,0.00026301,3]
[329475174,1718382993540,-1468.02,0.00029863,3]
[329475175,1718382993567,-2428.01392978,0.0003,2]
[329475176,1718382993645,-968.49131176,0.0003,2]
[329475177,1718382993667,-654.4538,0.0003,2]
[329475178,1718382993689,-692358.55962768,0.0003,2]
[329475179,1718382993766,-4592.15178615,0.0003,2]
[329475180,1718382993814,-2748.214647,0.0003,2]
[329475181,1718382993893,-306.76,0.0003,2]
[329475182,1718382993924,-2671.07007893,0.0003,2]
[329475183,1718382993948,-850.825,0.0003,2]
[329475184,1718382993972,-40934.36556783,0.0003,2]
[329475185,1718382994024,-314462.42792738,0.0003,2]
[329475186,1718382994042,-48081.05777663,0.0003,2]
[329475187,1718383000653,-300.0,0.00017807,2]
[329475188,1718383002314,162.603222,0.0001079,2]
[329475189,1718383003905,-420.0,0.00019433,2]
[329475191,1718383022297,300.0,0.00019725,2]
[329475192,1718383022487,150.0,0.00019725,2]
[329475193,1718383029435,41537.396778,0.00014,2]
[329475194,1718383046638,-32904.14667599,0.0001298,2]
[329475195,1718383046782,-531.47230708,0.00013999,2]
[329475196,1718383046932,-2001247.59448555,0.00014,2]
[329475197,1718383054350,150.0,0.00012979,2]
[329475198,1718383066902,-210.0,0.00014277,2]
[329475199,1718383067034,-406048.16588558,0.00015,2]
[329475200,1718383067228,300.0,0.00012979,2]
[329475201,1718383067721,420.0,0.00014234,2]
[329475202,1718383072377,188.80480057,0.00013998,7]
[329475203,1718383073932,1704.52086282,0.00012978,2]
[329475204,1718383075444,19578.90809627,0.00012978,2]
[329475205,1718383328026,-1000.0,0.00012977,2]
[329475206,1718383328086,-661.28447141,0.00012978,2]
[329475207,1718383328124,-150.000787,0.00019335,2]
[329475208,1718383328190,-1043.57163077,0.00019433,2]
[329475209,1718383328243,-300.0,0.00019451,2]
[329475210,1718383328302,-614.17,0.00019725,2]
[329475211,1718383328360,-224.11,0.00019726,2]
[329475212,1718383328403,-3754.22500345,0.0002,2]
[329475213,1718383328437,-4891.93757754,0.0002,2]
[329475214,1718383328475,-224.99,0.0002,3]
[329475215,1718383328520,-645.8,0.0002,2]
[329475216,1718383343571,1042.70867924,0.00014,2]
[329475219,1718383485096,583.46,0.00019691,2]
[329475221,1718383578637,1000.0,0.00019725,2]
[329475224,1718383685714,300.0,0.00019725,2]
[329475226,1718383741655,300.0,0.00019725,2]
[329475227,1718383834845,1000.0,0.00019725,2]
[329475261,1718383843703,-226.78109354,0.000201,2]
[329475262,1718383843727,-80.62251203,0.000209,2]
[329475264,1718383843773,-80.06350703,0.000209,2]
[329475265,1718383843792,-1250.0,0.00021,2]
[329475267,1718383843848,-254.0,0.00021206,2]
[329475269,1718383843867,-258.31960914,0.00021207,2]
[329475270,1718383843890,-1904.39,0.00021207,2]
[329475271,1718383843912,-499.99,0.00021207,2]
[329475272,1718383843944,-150.0,0.00021315,2]
[329475273,1718383843963,-6080.25735411,0.00021335,2]
[329475274,1718383843977,-259.24,0.00021337,2]
[329475275,1718383844004,-9355.87111332,0.00021352,2]
[329475276,1718383844646,-3684.91928839,0.00021352,2]
[329475277,1718383844696,-712.25,0.00021352,2]
[329475278,1718383844749,-370.27272899,0.00021352,2]
[329475281,1718383845480,-1126.80000001,0.00021352,2]
[329475284,1718383845533,-5230.95686929,0.00021352,2]
[329475286,1718383845548,-200.0,0.00021511,2]
[329475289,1718383845581,-213.15790435,0.00021513,2]
[329475292,1718383845598,-250.0,0.00021537,2]
[329475294,1718383845621,-250.0,0.00021544,2]
[329475295,1718383845650,-164.36,0.00021594,2]
[329475297,1718383845661,-8699.15561836,0.00021598,2]
[329475299,1718383845705,-655.809,0.00021598,2]
[329475303,1718383845956,-14545.03538164,0.00021598,2]
[329475304,1718383845969,-4634.93,0.000216,2]
[329475305,1718383845982,-500.0,0.000216,2]
[329475306,1718383845997,-533.27,0.00021637,2]
[329475307,1718383846014,-192.34,0.00021672,2]
[329475308,1718383846048,-500.56,0.00021684,2]
[329475309,1718383846081,-164.35,0.00021704,2]
[329475310,1718383846112,-150.0,0.00021721,2]
[329475311,1718383846126,-869.74,0.00021725,2]
[329475312,1718383846138,-1000.0,0.00021737,2]
[329475313,1718383846149,-500.0,0.00021753,2]
[329475314,1718383846165,-1109.34,0.00021753,2]
[329475315,1718383846181,-1627.12,0.00021764,2]
[329475316,1718383846230,-7119.3,0.00021806,2]
[329475317,1718383846243,-250.0,0.00021918,2]
[329475318,1718383846262,-831.88,0.00021918,2]
[329475319,1718383846287,-150.357,0.0002194,2]
[329475320,1718383846313,-583.46,0.00021955,2]
[329475321,1718383846395,-253.20337282,0.0002233,2]
[329475322,1718383846439,-796.5555,0.00022502,2]
[329475323,1718383846464,-500.0,0.00022602,2]
[329475324,1718383846489,-500.0,0.00022602,2]
[329475325,1718383846524,-1300.0,0.00023,2]
[329475326,1718383846565,-9992.38439003,0.000236,2]
[329475327,1718383846599,-155.0,0.00023697,2]
[329475328,1718383846640,-500.0,0.00023698,2]
[329475329,1718383846660,-500.0,0.00023698,2]
[329475330,1718383846674,-11731.0,0.000237,5]
[329475331,1718383846686,-12641.5251,0.0002378,2]
[329475332,1718383846702,-4182.48904192,0.0002381,2]
[329475333,1718383846719,-647.67858835,0.00023877,2]
[329475334,1718383846780,-554.9468301,0.00023878,2]
[329475335,1718383846823,-30053.64287967,0.00023879,2]
[329475336,1718383846870,-24663.53160466,0.0002388,2]